[Event "*** Titled Tuesday Blitz"]
[Site "Chess.com"]
[Date "2020.05.26"]
[Round "2"]
[White "Airquake"]
[Black "tigra"]
[Result "0-1"]
[WhiteElo "2496"]
[BlackElo "2754"]
[TimeControl "180+1"]
[EndTime "10:19:28 PDT"]
[Termination "tigra won by resignation"]

1. e4 {[%clk 0:02:52.1]} 1... c5 {[%clk 0:03:00]} 2. Nf3 {[%clk 0:02:51.7]} 2...
d6 {[%clk 0:03:00.7]} 3. d4 {[%clk 0:02:46.5]} 3... cxd4 {[%clk 0:03:01.6]} 4.
Nxd4 {[%clk 0:02:47.4]} 4... Nf6 {[%clk 0:03:01.3]} 5. Nc3 {[%clk 0:02:48]} 5...
a6 {[%clk 0:03:01.6]} 6. Be2 {[%clk 0:02:46.2]} 6... e6 {[%clk 0:02:59.7]} 7.
O-O {[%clk 0:02:46]} 7... Be7 {[%clk 0:03:00.2]} 8. Be3 {[%clk 0:02:45.4]} 8...
O-O {[%clk 0:03:00.8]} 9. a4 {[%clk 0:02:43]} 9... Nc6 {[%clk 0:03:00]} 10. Nb3
{[%clk 0:02:36.9]} 10... b6 {[%clk 0:02:59.4]} 11. f4 {[%clk 0:02:33.1]} 11...
Qc7 {[%clk 0:02:57.1]} 12. Bf3 {[%clk 0:02:32.9]} 12... Nd7 {[%clk 0:02:56.6]}
13. Qe2 {[%clk 0:02:28.2]} 13... Nc5 {[%clk 0:02:51.6]} 14. Nd2 {[%clk
0:02:05.2]} 14... Rb8 {[%clk 0:02:48.7]} 15. a5 {[%clk 0:01:46.9]} 15... bxa5
{[%clk 0:02:46.9]} 16. Nc4 {[%clk 0:01:43.7]} 16... Rb4 {[%clk 0:02:30.2]} 17.
Rfd1 {[%clk 0:01:29]} 17... Bd7 {[%clk 0:02:26.3]} 18. b3 {[%clk 0:01:02.9]}
18... a4 {[%clk 0:02:26]} 19. Bxc5 {[%clk 0:00:57.8]} 19... dxc5 {[%clk
0:02:25.9]} 20. Nxa4 {[%clk 0:00:58.2]} 20... Nd4 {[%clk 0:02:25.2]} 21. Qd3
{[%clk 0:00:54.2]} 21... Bxa4 {[%clk 0:02:08.7]} 22. Rxa4 {[%clk 0:00:53]} 22...
Rxa4 {[%clk 0:02:08.8]} 23. bxa4 {[%clk 0:00:53.9]} 23... Qxf4 {[%clk
0:02:09.2]} 24. Rf1 {[%clk 0:00:49.1]} 24... Rd8 {[%clk 0:02:00.8]} 25. Bh5
{[%clk 0:00:41.8]} 25... Qg5 {[%clk 0:01:52.9]} 26. Bxf7+ {[%clk 0:00:40.8]}
26... Kh8 {[%clk 0:01:53.4]} 27. Qh3 {[%clk 0:00:38.2]} 27... Ne2+ {[%clk
0:01:45.7]} 28. Kh1 {[%clk 0:00:38]} 28... Qf4 {[%clk 0:01:35.7]} 29. Ne3 {[%clk
0:00:24.3]} 29... Qxe4 {[%clk 0:01:20.6]} 30. Bxe6 {[%clk 0:00:19.7]} 30... Nf4
{[%clk 0:00:46.5]} 31. Bf5 {[%clk 0:00:19.1]} 31... Nxh3 {[%clk 0:00:45.7]} 32.
Bxe4 {[%clk 0:00:19.5]} 32... Ng5 {[%clk 0:00:46.5]} 33. Bd3 {[%clk 0:00:19.4]}
33... c4 {[%clk 0:00:23.2]} 34. Nxc4 {[%clk 0:00:18.3]} 34... Bf6 {[%clk
0:00:17.5]} 35. Na5 {[%clk 0:00:12.5]} 35... Rd6 {[%clk 0:00:16.5]} 36. g4
{[%clk 0:00:08.8]} 36... g6 {[%clk 0:00:15.7]} 37. h4 {[%clk 0:00:08.4]} 37...
Bc3 {[%clk 0:00:12.9]} 38. Nc4 {[%clk 0:00:07.3]} 38... Rd4 {[%clk 0:00:12.6]}
39. hxg5 {[%clk 0:00:07.3]} 39... Rxg4 {[%clk 0:00:12.2]} 40. Nd6 {[%clk
0:00:06.5]} 40... Rh4+ {[%clk 0:00:09.2]} 41. Kg2 {[%clk 0:00:06.1]} 41... Rxa4
{[%clk 0:00:07.9]} 42. Rf7 {[%clk 0:00:05.2]} 42... Bd2 {[%clk 0:00:06.8]} 43.
Ra7 {[%clk 0:00:03.3]} 43... Ra5 {[%clk 0:00:06.5]} 44. Nf7+ {[%clk 0:00:03.4]}
44... Kg8 {[%clk 0:00:06.6]} 45. Bc4 {[%clk 0:00:03.9]} 45... Kf8 {[%clk
0:00:06.7]} 46. Kf3 {[%clk 0:00:02.7]} 46... Rc5 {[%clk 0:00:06.7]} 47. Bb3
{[%clk 0:00:02.2]} 47... Bc1 {[%clk 0:00:06]} 48. Nd6 {[%clk 0:00:02.2]} 48...
Rxg5 {[%clk 0:00:05.7]} 49. Ne4 {[%clk 0:00:03.1]} 49... Rf5+ {[%clk 0:00:05.7]}
50. Ke2 {[%clk 0:00:04]} 50... h5 {[%clk 0:00:06.3]} 51. Rxa6 {[%clk 0:00:04]}
51... Re5 {[%clk 0:00:06.5]} 52. Kd3 {[%clk 0:00:04.2]} 52... g5 {[%clk
0:00:06.6]} 53. Rg6 {[%clk 0:00:03.9]} 53... g4 {[%clk 0:00:06.8]} 54. Ng3
{[%clk 0:00:03.9]} 54... h4 {[%clk 0:00:06.6]} 55. Ne4 {[%clk 0:00:04.2]} 55...
g3 {[%clk 0:00:06.9]} 56. Nxg3 {[%clk 0:00:04.6]} 56... Re3+ {[%clk 0:00:06.1]}
57. Kd4 {[%clk 0:00:04.7]} 57... hxg3 {[%clk 0:00:07]} 58. c4 {[%clk 0:00:05]}
58... Rf3 {[%clk 0:00:06.8]} 59. Bc2 {[%clk 0:00:05.1]} 59... Bf4 {[%clk
0:00:05.7]} 60. Be4 {[%clk 0:00:05.2]} 60... Rf2 {[%clk 0:00:05.7]} 61. c5
{[%clk 0:00:05.1]} 61... Kf7 {[%clk 0:00:06.2]} 62. Rg4 {[%clk 0:00:05.1]} 62...
Kf6 {[%clk 0:00:06.1]} 63. c6 {[%clk 0:00:04.9]} 63... Be5+ {[%clk 0:00:06.6]}
64. Kd5 {[%clk 0:00:05.1]} 64... Rd2+ {[%clk 0:00:06.7]} 65. Kc4 {[%clk
0:00:05.4]} 65... Rd4+ {[%clk 0:00:07.1]} 66. Kc5 {[%clk 0:00:05.9]} 66... g2
{[%clk 0:00:07.1]} 67. Rg6+ {[%clk 0:00:05.4]} 67... Kf7 {[%clk 0:00:07]} 68.
Rxg2 {[%clk 0:00:04]} 68... Rxe4 {[%clk 0:00:07.4]} 69. Rd2 {[%clk 0:00:04.2]}
69... Ke6 {[%clk 0:00:07.3]} 70. Kb6 {[%clk 0:00:04]} 70... Rb4+ {[%clk
0:00:07.2]} 71. Kc5 {[%clk 0:00:03.3]} 71... Rb1 {[%clk 0:00:08.1]} 72. Rd3
{[%clk 0:00:03.5]} 72... Rc1+ {[%clk 0:00:08.1]} 73. Kb6 {[%clk 0:00:03.7]}
73... Rb1+ {[%clk 0:00:08.3]} 74. Kc5 {[%clk 0:00:03.9]} 74... Bf4 {[%clk
0:00:09]} 75. Rd4 {[%clk 0:00:03.3]} 75... Be3 {[%clk 0:00:09.1]} 76. c7 {[%clk
0:00:03.8]} 76... Rc1+ {[%clk 0:00:09.2]} 0-1

[Event "*** Titled Tuesday Blitz"]
[Site "Chess.com"]
[Date "2020.05.26"]
[Round "2"]
[White "zurzan"]
[Black "Khayala13"]
[Result "0-1"]
[WhiteElo "1926"]
[BlackElo "2341"]
[TimeControl "180+1"]
[EndTime "10:19:34 PDT"]
[Termination "Khayala13 won on time"]

1. f4 {[%clk 0:03:00.9]} 1... d5 {[%clk 0:02:59.4]} 2. Nf3 {[%clk 0:03:00.5]}
2... c5 {[%clk 0:02:59.6]} 3. g3 {[%clk 0:03:00.7]} 3... Nc6 {[%clk 0:03:00.1]}
4. Bg2 {[%clk 0:03:01.6]} 4... Nf6 {[%clk 0:03:00.4]} 5. O-O {[%clk 0:03:02.5]}
5... e6 {[%clk 0:02:59.1]} 6. d3 {[%clk 0:03:03.4]} 6... Bd6 {[%clk 0:02:56.3]}
7. c3 {[%clk 0:03:04.3]} 7... e5 {[%clk 0:02:53.9]} 8. Qe1 {[%clk 0:03:05.2]}
8... exf4 {[%clk 0:02:49.9]} 9. Bxf4 {[%clk 0:03:04.7]} 9... Bxf4 {[%clk
0:02:49]} 10. gxf4 {[%clk 0:03:05.6]} 10... O-O {[%clk 0:02:49.4]} 11. e4 {[%clk
0:03:03]} 11... dxe4 {[%clk 0:02:48]} 12. dxe4 {[%clk 0:03:03]} 12... Re8 {[%clk
0:02:44.4]} 13. e5 {[%clk 0:03:02.6]} 13... Nd5 {[%clk 0:02:44.3]} 14. Qg3
{[%clk 0:02:38.8]} 14... Ne3 {[%clk 0:02:39.2]} 15. Rc1 {[%clk 0:02:25.1]} 15...
Bf5 {[%clk 0:02:19.9]} 16. Na3 {[%clk 0:02:21.2]} 16... Nxg2 {[%clk 0:02:17.6]}
17. Qxg2 {[%clk 0:02:13.3]} 17... Re6 {[%clk 0:02:14]} 18. Rd1 {[%clk
0:01:51.3]} 18... Qe8 {[%clk 0:02:13.8]} 19. Nh4 {[%clk 0:01:41.3]} 19... Bg6
{[%clk 0:01:33.6]} 20. Kf2 {[%clk 0:01:40.5]} 20... Qe7 {[%clk 0:01:20.4]} 21.
Nf3 {[%clk 0:01:30.4]} 21... Be4 {[%clk 0:01:18.1]} 22. Rg1 {[%clk 0:01:15.4]}
22... Rg6 {[%clk 0:01:17.6]} 23. Qh3 {[%clk 0:01:15.2]} 23... Rd8 {[%clk
0:01:13.1]} 24. Rxg6 {[%clk 0:01:11.1]} 24... hxg6 {[%clk 0:01:12.7]} 25. Nc4
{[%clk 0:01:04.9]} 25... Bf5 {[%clk 0:01:00.3]} 26. Qh4 {[%clk 0:01:00.1]} 26...
Rd3 {[%clk 0:00:36.1]} 27. Qxe7 {[%clk 0:00:56.7]} 27... Nxe7 {[%clk 0:00:36.3]}
28. Ne3 {[%clk 0:00:54.7]} 28... Nd5 {[%clk 0:00:34.8]} 29. Ng2 {[%clk
0:00:41.6]} 29... Nb6 {[%clk 0:00:27.5]} 30. Re1 {[%clk 0:00:36.3]} 30... Bg4
{[%clk 0:00:24.4]} 31. Ne3 {[%clk 0:00:32.4]} 31... Bxf3 {[%clk 0:00:23.4]} 32.
Kxf3 {[%clk 0:00:32.2]} 32... Nc4 {[%clk 0:00:24]} 33. b3 {[%clk 0:00:29.3]}
33... Nxe3 {[%clk 0:00:21]} 34. Rxe3 {[%clk 0:00:29.1]} 34... Rd2 {[%clk
0:00:21.9]} 35. Re2 {[%clk 0:00:29.2]} 35... Rd3+ {[%clk 0:00:21.9]} 36. Re3
{[%clk 0:00:29.5]} 36... Rd1 {[%clk 0:00:22.8]} 37. Re2 {[%clk 0:00:29.1]} 37...
Kf8 {[%clk 0:00:20.6]} 38. c4 {[%clk 0:00:27.7]} 38... Ke7 {[%clk 0:00:20.8]}
39. Ke4 {[%clk 0:00:24.9]} 39... Ke6 {[%clk 0:00:20.7]} 40. a3 {[%clk
0:00:20.6]} 40... Ra1 {[%clk 0:00:19.4]} 41. a4 {[%clk 0:00:20.8]} 41... Rb1
{[%clk 0:00:19.5]} 42. Re3 {[%clk 0:00:21]} 42... Rb2 {[%clk 0:00:19.9]} 43. h3
{[%clk 0:00:21.4]} 43... Rd2 {[%clk 0:00:18.9]} 44. Kf3 {[%clk 0:00:20.7]} 44...
Rh2 {[%clk 0:00:14]} 45. Kg3 {[%clk 0:00:20.7]} 45... Rd2 {[%clk 0:00:13.9]} 46.
Kf3 {[%clk 0:00:20.9]} 46... Kf5 {[%clk 0:00:13.8]} 47. Kg3 {[%clk 0:00:20.7]}
47... g5 {[%clk 0:00:12]} 48. fxg5 {[%clk 0:00:20.2]} 48... Kxg5 {[%clk
0:00:12.9]} 49. h4+ {[%clk 0:00:20.2]} 49... Kf5 {[%clk 0:00:13]} 50. Rf3+
{[%clk 0:00:20.2]} 50... Ke6 {[%clk 0:00:13.1]} 51. Re3 {[%clk 0:00:20.1]} 51...
Rd4 {[%clk 0:00:13]} 52. Kh3 {[%clk 0:00:18.9]} 52... g6 {[%clk 0:00:13.3]} 53.
Kg3 {[%clk 0:00:19]} 53... Rd1 {[%clk 0:00:13.5]} 54. Kh3 {[%clk 0:00:18.4]}
54... Rf1 {[%clk 0:00:13.9]} 55. Kg3 {[%clk 0:00:18.4]} 55... Rf5 {[%clk
0:00:14.4]} 56. Kh3 {[%clk 0:00:17.7]} 56... Rxe5 {[%clk 0:00:14.9]} 57. Rf3
{[%clk 0:00:17.7]} 57... f5 {[%clk 0:00:14.8]} 58. h5 {[%clk 0:00:17.4]} 58...
gxh5 {[%clk 0:00:14.7]} 59. Kh4 {[%clk 0:00:17.9]} 59... Re1 {[%clk 0:00:15.2]}
60. Kxh5 {[%clk 0:00:17.8]} 60... Rg1 {[%clk 0:00:15.8]} 61. Kh4 {[%clk
0:00:15.7]} 61... Ke5 {[%clk 0:00:15.1]} 62. Kh3 {[%clk 0:00:15.6]} 62... Ke4
{[%clk 0:00:14.9]} 63. Rc3 {[%clk 0:00:14.9]} 63... f4 {[%clk 0:00:15]} 64. Kh2
{[%clk 0:00:14.9]} 64... Rg8 {[%clk 0:00:15.6]} 65. a5 {[%clk 0:00:10.9]} 65...
f3 {[%clk 0:00:15.7]} 66. Rc2 {[%clk 0:00:10]} 66... Ke3 {[%clk 0:00:15.5]} 67.
Rc3+ {[%clk 0:00:09.7]} 67... Ke2 {[%clk 0:00:15.4]} 68. Rc2+ {[%clk 0:00:10]}
68... Kd3 {[%clk 0:00:15.9]} 69. Rf2 {[%clk 0:00:09]} 69... Ke3 {[%clk
0:00:16.1]} 70. Rc2 {[%clk 0:00:06.9]} 70... f2 {[%clk 0:00:16.4]} 71. Rc3+
{[%clk 0:00:07.2]} 71... Kd2 {[%clk 0:00:14.9]} 72. Rf3 {[%clk 0:00:06.4]} 72...
Ke2 {[%clk 0:00:15.2]} 0-1

[Event "*** Titled Tuesday Blitz"]
[Site "Chess.com"]
[Date "2020.05.26"]
[Round "2"]
[White "MikeSailer"]
[Black "lupta_robin"]
[Result "0-1"]
[WhiteElo "2087"]
[BlackElo "2612"]
[TimeControl "180+1"]
[EndTime "10:19:40 PDT"]
[Termination "lupta_robin won by resignation"]

1. d4 {[%clk 0:03:00.8]} 1... Nf6 {[%clk 0:02:58.4]} 2. Nf3 {[%clk 0:03:01.2]}
2... d5 {[%clk 0:02:56.3]} 3. Bf4 {[%clk 0:03:01.4]} 3... e6 {[%clk 0:02:52.7]}
4. e3 {[%clk 0:03:01.9]} 4... c5 {[%clk 0:02:53]} 5. Nbd2 {[%clk 0:03:01.9]}
5... Nc6 {[%clk 0:02:53.4]} 6. c3 {[%clk 0:03:00]} 6... Bd6 {[%clk 0:02:53]} 7.
Bd3 {[%clk 0:02:59.5]} 7... O-O {[%clk 0:02:50.2]} 8. O-O {[%clk 0:02:59.9]}
8... b6 {[%clk 0:02:49.1]} 9. Bxd6 {[%clk 0:02:55]} 9... Qxd6 {[%clk 0:02:48.8]}
10. Re1 {[%clk 0:02:48.8]} 10... e5 {[%clk 0:02:43.9]} 11. dxe5 {[%clk
0:02:48.9]} 11... Nxe5 {[%clk 0:02:44.2]} 12. Nxe5 {[%clk 0:02:49.6]} 12... Qxe5
{[%clk 0:02:45]} 13. Nf3 {[%clk 0:02:50.1]} 13... Qe7 {[%clk 0:02:45.3]} 14. Qc2
{[%clk 0:02:48.4]} 14... Bb7 {[%clk 0:02:36.2]} 15. a4 {[%clk 0:02:31]} 15... h6
{[%clk 0:02:33]} 16. a5 {[%clk 0:02:31.4]} 16... Rfd8 {[%clk 0:02:27.6]} 17.
axb6 {[%clk 0:02:27.2]} 17... axb6 {[%clk 0:02:27.6]} 18. Bb5 {[%clk 0:02:25.3]}
18... Qe6 {[%clk 0:02:25.1]} 19. Bd3 {[%clk 0:02:23.1]} 19... Ne4 {[%clk
0:02:03]} 20. Bxe4 {[%clk 0:02:15]} 20... dxe4 {[%clk 0:02:03.1]} 21. Nd2 {[%clk
0:02:15.5]} 21... f5 {[%clk 0:01:47]} 22. b3 {[%clk 0:01:52]} 22... b5 {[%clk
0:01:44.4]} 23. c4 {[%clk 0:01:35]} 23... b4 {[%clk 0:01:40.9]} 24. Nf1 {[%clk
0:01:33]} 24... Qe5 {[%clk 0:01:40.6]} 25. Rad1 {[%clk 0:01:31.1]} 25... Bc6
{[%clk 0:01:35.6]} 26. Ng3 {[%clk 0:01:26.4]} 26... g5 {[%clk 0:01:25.6]} 27.
Qe2 {[%clk 0:01:05.8]} 27... Kg7 {[%clk 0:01:21.9]} 28. Nh5+ {[%clk 0:01:04.9]}
28... Kg6 {[%clk 0:01:21.8]} 29. Rxd8 {[%clk 0:00:52.3]} 29... Rxd8 {[%clk
0:01:21.2]} 30. Rd1 {[%clk 0:00:50.3]} 30... Rd3 {[%clk 0:01:15.8]} 31. Ng3
{[%clk 0:00:44.1]} 31... Rxd1+ {[%clk 0:00:23.8]} 32. Qxd1 {[%clk 0:00:43.9]}
32... f4 {[%clk 0:00:18.3]} 33. exf4 {[%clk 0:00:27.9]} 33... gxf4 {[%clk
0:00:18.1]} 34. Qg4+ {[%clk 0:00:22.9]} 34... Kh7 {[%clk 0:00:14.5]} 35. Qf5+
{[%clk 0:00:13.2]} 35... Qxf5 {[%clk 0:00:13.7]} 36. Nxf5 {[%clk 0:00:14]} 36...
h5 {[%clk 0:00:06.5]} 37. Ne7 {[%clk 0:00:09]} 37... Bb7 {[%clk 0:00:06]} 38.
Nd5 {[%clk 0:00:04.4]} 38... f3 {[%clk 0:00:04.4]} 39. gxf3 {[%clk 0:00:04.2]}
39... exf3 {[%clk 0:00:05.3]} 40. Ne3 {[%clk 0:00:02.9]} 40... Kg6 {[%clk
0:00:05.2]} 41. Kf1 {[%clk 0:00:03]} 41... Kg5 {[%clk 0:00:05.8]} 42. Nd1 {[%clk
0:00:03.2]} 42... Kf4 {[%clk 0:00:06.2]} 43. Nb2 {[%clk 0:00:04]} 43... Be4
{[%clk 0:00:06.6]} 44. Na4 {[%clk 0:00:04.4]} 44... Bc2 {[%clk 0:00:06.9]} 45.
Nxc5 {[%clk 0:00:04.9]} 45... Ke5 {[%clk 0:00:07.5]} 46. Ke1 {[%clk 0:00:05.2]}
46... Kd4 {[%clk 0:00:07.1]} 47. Ne6+ {[%clk 0:00:05.6]} 47... Kc3 {[%clk
0:00:06.8]} 48. Ng5 {[%clk 0:00:06.1]} 48... Kxb3 {[%clk 0:00:06.4]} 49. Nxf3
{[%clk 0:00:05.8]} 49... Kxc4 {[%clk 0:00:06.1]} 50. Kd2 {[%clk 0:00:05.9]}
50... Be4 {[%clk 0:00:06.3]} 51. Ne1 {[%clk 0:00:05.9]} 51... b3 {[%clk
0:00:06.5]} 52. f3 {[%clk 0:00:05.9]} 52... b2 {[%clk 0:00:06.7]} 53. Nc2 {[%clk
0:00:03.3]} 53... b1=Q {[%clk 0:00:02.9]} 54. Na3+ {[%clk 0:00:03.6]} 54... Kc5
{[%clk 0:00:02.9]} 55. Nxb1 {[%clk 0:00:04]} 55... Bxb1 {[%clk 0:00:03.6]} 56.
Ke3 {[%clk 0:00:04.9]} 56... Kd6 {[%clk 0:00:03.9]} 57. Kf4 {[%clk 0:00:05.5]}
57... Bg6 {[%clk 0:00:04.3]} 58. Kg5 {[%clk 0:00:06]} 58... Be8 {[%clk
0:00:04.9]} 59. f4 {[%clk 0:00:06.9]} 59... Ke7 {[%clk 0:00:05.1]} 60. f5 {[%clk
0:00:07.4]} 60... Kf8 {[%clk 0:00:05.4]} 61. Kf6 {[%clk 0:00:06]} 61... Kg8
{[%clk 0:00:04.8]} 62. Kg5 {[%clk 0:00:05.6]} 62... Bf7 {[%clk 0:00:04.8]} 63.
Kf6 {[%clk 0:00:05.4]} 63... Kf8 {[%clk 0:00:05.4]} 64. Kg5 {[%clk 0:00:05.8]}
64... Kg7 {[%clk 0:00:05.9]} 65. f6+ {[%clk 0:00:05.5]} 65... Kh7 {[%clk
0:00:06]} 66. h3 {[%clk 0:00:05.7]} 66... Be8 {[%clk 0:00:06.2]} 67. Kf5 {[%clk
0:00:03.2]} 67... Bf7 {[%clk 0:00:06.3]} 68. Kg5 {[%clk 0:00:03.1]} 68... Be8
{[%clk 0:00:06.7]} 69. Kf5 {[%clk 0:00:03.7]} 69... Kh6 {[%clk 0:00:07.2]} 70.
Ke6 {[%clk 0:00:04.4]} 70... Kg6 {[%clk 0:00:07.3]} 71. Ke7 {[%clk 0:00:04.8]}
71... Bf7 {[%clk 0:00:07.4]} 72. h4 {[%clk 0:00:05.3]} 72... Bc4 {[%clk
0:00:07.5]} 73. Kf8 {[%clk 0:00:04.6]} 73... Kxf6 {[%clk 0:00:07.2]} 74. Ke8
{[%clk 0:00:05]} 74... Kf5 {[%clk 0:00:07.7]} 75. Kf8 {[%clk 0:00:05.1]} 75...
Kg4 {[%clk 0:00:08.2]} 76. Kg7 {[%clk 0:00:06]} 76... Kxh4 {[%clk 0:00:08.7]}
77. Kh6 {[%clk 0:00:06.9]} 77... Kg4 {[%clk 0:00:09.1]} 0-1

[Event "*** Titled Tuesday Blitz"]
[Site "Chess.com"]
[Date "2020.05.26"]
[Round "2"]
[White "varacalli"]
[Black "Goryachkina"]
[Result "1/2-1/2"]
[WhiteElo "2338"]
[BlackElo "2605"]
[TimeControl "180+1"]
[EndTime "10:19:40 PDT"]
[Termination "Game drawn by repetition"]

1. e4 {[%clk 0:02:57.9]} 1... e6 {[%clk 0:02:59.5]} 2. d4 {[%clk 0:02:53.7]}
2... d5 {[%clk 0:02:59.4]} 3. Nd2 {[%clk 0:02:54.3]} 3... c5 {[%clk 0:02:59.1]}
4. exd5 {[%clk 0:02:51.9]} 4... Qxd5 {[%clk 0:03:00]} 5. Ngf3 {[%clk 0:02:50.5]}
5... cxd4 {[%clk 0:03:00]} 6. Bc4 {[%clk 0:02:50.3]} 6... Qd7 {[%clk 0:03:00.1]}
7. O-O {[%clk 0:02:50.3]} 7... Nc6 {[%clk 0:03:00.1]} 8. Nb3 {[%clk 0:02:50.6]}
8... a6 {[%clk 0:03:00.3]} 9. Nbxd4 {[%clk 0:02:50.6]} 9... Nxd4 {[%clk
0:02:59.2]} 10. Nxd4 {[%clk 0:02:51.5]} 10... Qc7 {[%clk 0:02:59.1]} 11. b3
{[%clk 0:02:47.2]} 11... Bd6 {[%clk 0:02:52.9]} 12. Nf3 {[%clk 0:02:46.9]} 12...
Nf6 {[%clk 0:02:43.5]} 13. Bb2 {[%clk 0:02:46.2]} 13... Bd7 {[%clk 0:02:38.7]}
14. Qe2 {[%clk 0:02:43.8]} 14... Bc6 {[%clk 0:02:03.2]} 15. Rfe1 {[%clk
0:02:42.5]} 15... Bxf3 {[%clk 0:01:51.3]} 16. Qxf3 {[%clk 0:02:43.4]} 16...
Bxh2+ {[%clk 0:01:49.7]} 17. Kh1 {[%clk 0:02:43.8]} 17... Bf4 {[%clk 0:01:42.8]}
18. Rad1 {[%clk 0:02:31.7]} 18... h5 {[%clk 0:01:28.9]} 19. g3 {[%clk
0:02:02.3]} 19... Bg5 {[%clk 0:01:18.4]} 20. Re5 {[%clk 0:01:55.9]} 20... Bh6
{[%clk 0:00:52.9]} 21. Bxe6 {[%clk 0:01:35.8]} 21... O-O {[%clk 0:00:38.8]} 22.
Bc4 {[%clk 0:01:29.1]} 22... Rad8 {[%clk 0:00:35.9]} 23. Rde1 {[%clk 0:01:25.9]}
23... Rd2 {[%clk 0:00:26.3]} 24. Re7 {[%clk 0:01:20.1]} 24... Qc6 {[%clk
0:00:26]} 25. Qxc6 {[%clk 0:01:10.4]} 25... bxc6 {[%clk 0:00:26.9]} 26. Bxf6
{[%clk 0:00:58.2]} 26... gxf6 {[%clk 0:00:25.5]} 27. R1e2 {[%clk 0:00:58.7]}
27... Rxe2 {[%clk 0:00:19.6]} 28. Bxe2 {[%clk 0:00:59.5]} 28... a5 {[%clk
0:00:19.8]} 29. Bxh5 {[%clk 0:00:57.2]} 29... Bd2 {[%clk 0:00:18]} 30. Be2
{[%clk 0:00:55.8]} 30... c5 {[%clk 0:00:17.4]} 31. Bc4 {[%clk 0:00:54.1]} 31...
Kg7 {[%clk 0:00:17.2]} 32. Kg2 {[%clk 0:00:53.1]} 32... f5 {[%clk 0:00:17.3]}
33. Re5 {[%clk 0:00:49.8]} 33... Bb4 {[%clk 0:00:16.9]} 34. Rxf5 {[%clk
0:00:48.6]} 34... f6 {[%clk 0:00:17.2]} 35. g4 {[%clk 0:00:40.8]} 35... Rd8
{[%clk 0:00:15.2]} 36. g5 {[%clk 0:00:35.9]} 36... fxg5 {[%clk 0:00:15.3]} 37.
Rxg5+ {[%clk 0:00:36.8]} 37... Kf6 {[%clk 0:00:15.5]} 38. Rd5 {[%clk 0:00:35.6]}
38... Rxd5 {[%clk 0:00:14.1]} 39. Bxd5 {[%clk 0:00:36.5]} 39... Ke5 {[%clk
0:00:14.4]} 40. Bc4 {[%clk 0:00:35]} 40... Kf4 {[%clk 0:00:14.8]} 41. Kf1 {[%clk
0:00:30.3]} 41... Bc3 {[%clk 0:00:13.1]} 42. Ke2 {[%clk 0:00:30.3]} 42... Bd4
{[%clk 0:00:13.1]} 43. f3 {[%clk 0:00:29.9]} 43... Bc3 {[%clk 0:00:13]} 44. Kd3
{[%clk 0:00:28.5]} 44... Bb4 {[%clk 0:00:11.5]} 45. Bd5 {[%clk 0:00:28.5]} 45...
Ke5 {[%clk 0:00:11.5]} 46. Kc4 {[%clk 0:00:28.3]} 46... Ba3 {[%clk 0:00:09]} 47.
Be4 {[%clk 0:00:25.2]} 47... Kf4 {[%clk 0:00:06.6]} 48. Kb5 {[%clk 0:00:22]}
48... Bb4 {[%clk 0:00:05.2]} 49. a3 {[%clk 0:00:16.2]} 49... Bxa3 {[%clk
0:00:05.4]} 50. Kxa5 {[%clk 0:00:14.8]} 50... Ke3 {[%clk 0:00:05.5]} 51. Kb5
{[%clk 0:00:14.9]} 51... Kd4 {[%clk 0:00:05.5]} 52. Bb7 {[%clk 0:00:12.5]} 52...
Bc1 {[%clk 0:00:04.4]} 53. Be4 {[%clk 0:00:11.1]} 53... Ba3 {[%clk 0:00:04.4]}
54. Bh7 {[%clk 0:00:12]} 54... Bc1 {[%clk 0:00:04.5]} 55. Kc6 {[%clk 0:00:12.4]}
55... Ba3 {[%clk 0:00:04.4]} 56. Kd6 {[%clk 0:00:10.8]} 56... Bc1 {[%clk
0:00:04.2]} 57. Ke6 {[%clk 0:00:08.2]} 57... Bf4 {[%clk 0:00:04.2]} 58. Kf5
{[%clk 0:00:08.2]} 58... Ke3 {[%clk 0:00:04.6]} 59. Kg4 {[%clk 0:00:08.7]} 59...
Bd6 {[%clk 0:00:04.5]} 60. Bg8 {[%clk 0:00:07.8]} 60... Be5 {[%clk 0:00:04.3]}
61. Kf5 {[%clk 0:00:03.8]} 61... Bd6 {[%clk 0:00:04.3]} 62. Kg4 {[%clk
0:00:00.9]} 62... Bf4 {[%clk 0:00:04.2]} 63. Bc4 {[%clk 0:00:01.8]} 63... Be5
{[%clk 0:00:04.3]} 64. Bb5 {[%clk 0:00:02.7]} 64... Bd6 {[%clk 0:00:04.5]} 65.
Bc4 {[%clk 0:00:03.6]} 65... Be5 {[%clk 0:00:04.9]} 66. Bb5 {[%clk 0:00:04.5]}
66... Bd6 {[%clk 0:00:05.3]} 67. Bc4 {[%clk 0:00:04.8]} 67... Be5 {[%clk
0:00:05.5]} 1/2-1/2